fUSD/lending_fUSD_20250724
["ID","MTS","AMOUNT","RATE_DAILY","PERIOD"]
[374645183,1753397432495,-151.0,0.00031191,2]
[374645184,1753397432505,-151.0,0.00031191,2]
[374645185,1753397432515,-151.0,0.00031191,2]
[374645186,1753397432524,-151.0,0.00031191,2]
[374645187,1753397432534,-151.0,0.00031191,2]
[374645188,1753397432544,-151.0,0.00031191,2]
[374645189,1753397432557,-151.0,0.00031191,2]
[374645190,1753397432566,-151.0,0.00031191,2]
[374645191,1753397432576,-1100.0,0.000312,11]
[374645192,1753397432585,-660.467,0.00031209,28]
[374645193,1753397432595,-10375.72632008,0.0003121,2]
[374645194,1753397432611,-8199.74367992,0.0003121,2]
[374645195,1753397432621,-157.64,0.0003123,2]
[374645196,1753397432631,-166.35,0.00031263,2]
[374645197,1753397432640,-2200.0,0.000313,11]
[374645198,1753397432650,-157.99,0.00031311,2]
[374645199,1753397432660,-280.0,0.00031316,30]
[374645200,1753397432669,-267.13,0.00031317,30]
[374645201,1753397432679,-1134.74632008,0.000314,11]
[374645202,1753397432722,-731.03756705,0.000314,11]
[374645203,1753397432733,-263.263,0.000314,11]
[374645204,1753397432744,-1270.95311287,0.000314,11]
[374645205,1753397432754,-24144.14,0.00031426,2]
[374645206,1753397432764,-4500.0,0.000315,11]
[374645207,1753397432773,-500.0,0.00031597,15]
[374645208,1753397432782,-5600.0,0.000316,11]
[374645209,1753397432792,-346.92554585,0.00031661,2]
[374645210,1753397432804,-600.0,0.00031661,2]
[374645211,1753397432814,-160.0,0.00031661,2]
[374645212,1753397432823,-9216.856,0.00031661,2]
[374645213,1753397432833,-231.28369723,0.00031661,2]
[374645214,1753397432842,-3173.47,0.00031699,2]
[374645215,1753397432852,-1100.0,0.000317,11]
[374645216,1753397432862,-1100.0,0.000318,11]
[374645217,1753397432871,-834.197676,0.0003184,30]
[374645218,1753397432880,-500.0,0.00031871,15]
[374645219,1753397432893,-242.77957875,0.00031887,2]
[374645220,1753397432903,-1100.0,0.000319,11]
[374645221,1753397432912,-3281.0,0.00031947,7]
[374645222,1753397432922,-332.78,0.00031966,2]
[374645223,1753397432932,-504.5,0.00032,2]
[374645224,1753397432941,-2340.43,0.00032,2]
[374645225,1753397432951,-500.0,0.00032014,7]
[374645226,1753397432961,-500.0,0.00032014,7]
[374645227,1753397432970,-3281.0,0.00032043,2]
[374645228,1753397432979,-324.62,0.000321,2]
[374645229,1753397432988,-168.0,0.00032167,2]
[374645230,1753397432997,-898.0,0.0003218,3]
[374645231,1753397433007,-10722.75437396,0.00032189,2]
[374645232,1753397433016,-1346.91,0.0003219,3]
[374645233,1753397433026,-1000.0,0.00032199,2]
[374645234,1753397433035,-8203.3576,0.00032199,2]
[374645235,1753397433045,-897.94,0.000322,3]
[374645236,1753397433060,-1400.0,0.000322,2]
[374645237,1753397433069,-340.75598968,0.00032209,2]
[374645238,1753397433081,-9217.12368232,0.00032209,2]
[374645239,1753397433092,-186.56,0.00032243,2]
[374645240,1753397433101,-1638.03044853,0.0003225,2]
[374645241,1753397433110,-1638.03044848,0.00032265,2]
[374645242,1753397433120,-1638.03044848,0.0003228,2]
[374645243,1753397433129,-539.39879833,0.00032288,2]
[374645244,1753397433140,-2500.0,0.00032288,2]
[374645245,1753397433150,-1638.03044848,0.00032295,2]
[374645246,1753397433159,-184.23819539,0.00032296,2]
[374645247,1753397433168,-400.0,0.00032297,10]
[374645248,1753397433178,-555.82,0.00032297,10]
[374645249,1753397433188,-1691.54,0.00032297,10]
[374645250,1753397433197,-630.12,0.00032297,10]
[374645251,1753397433207,-1148.86,0.00032297,10]
[374645252,1753397433217,-491.56,0.00032297,10]
[374645253,1753397433226,-400.0,0.00032297,10]
[374645254,1753397433236,-1455.7804,0.00032298,2]
[374645255,1753397433246,-88581.1618,0.00032298,3]
[374645256,1753397433255,-211.01152796,0.00032298,3]
[374645257,1753397433266,-539.39879826,0.00032299,2]
[374645258,1753397433275,-1726.7,0.00032299,2]
[374645259,1753397433285,-8143.31406923,0.000323,2]
[374645260,1753397433298,-6335.20603118,0.000323,2]
[374645261,1753397433358,-701.64160126,0.000323,2]
[374645264,1753397437699,-150.0,0.00022,2]
[374645265,1753397437709,-230.0,0.0002318,2]
[374645266,1753397437719,-195.075,0.00025641,2]
[374645267,1753397437728,-180.0,0.00031099,7]
[374645268,1753397437738,-400.0,0.00032297,2]
[374645269,1753397437748,-784.34587615,0.00032297,10]
[374645270,1753397437759,-544.92412385,0.00032297,10]
[374645271,1753397437769,-318.36023375,0.000323,2]
[374645397,1753397439706,-931.57,0.00032297,10]
[374645399,1753397439717,-25644.89247837,0.000323,2]
[374645401,1753397439727,-539.39879826,0.0003231,2]
[374645403,1753397439736,-1638.03044848,0.0003231,2]
[374645405,1753397439746,-539.39879826,0.00032321,2]
[374645407,1753397439755,-1638.03044848,0.00032326,2]
[374645409,1753397439765,-539.39879826,0.00032332,2]
[374645411,1753397439774,-1638.03044848,0.00032341,2]
[374645413,1753397439784,-539.39879826,0.00032342,2]
[374645415,1753397439793,-539.39879826,0.00032353,2]
[374645417,1753397439803,-1638.03044848,0.00032356,2]
[374645419,1753397439814,-539.39879826,0.00032364,2]
[374645421,1753397439824,-1638.03044848,0.00032371,2]
[374645422,1753397439833,-159.13754522,0.00032373,5]
[374645424,1753397439843,-500.0,0.00032373,5]
[374645426,1753397439862,-343.915208,0.00032373,5]
[374645428,1753397439872,-500.0,0.00032373,5]
[374645430,1753397439881,-500.0,0.00032373,5]
[374645432,1753397439894,-296.08945683,0.00032373,5]
[374645434,1753397439904,-500.0,0.00032373,5]
[374645436,1753397439915,-539.39879826,0.00032375,2]
[374645438,1753397439924,-25627.8029054,0.00032377,2]
[374645440,1753397439934,-25627.8029054,0.00032377,2]
[374645442,1753397439944,-76883.4087163,0.00032378,2]
[374645444,1753397439953,-400.0,0.00032385,10]
[374645446,1753397439964,-555.82,0.00032385,10]
[374645448,1753397439974,-1691.54,0.00032385,10]
[374645450,1753397439984,-630.12,0.00032385,10]
[374645452,1753397439993,-1148.86,0.00032385,10]
[374645454,1753397440003,-491.56,0.00032385,10]
[374645456,1753397440013,-400.0,0.00032385,10]
[374645458,1753397440022,-1329.27,0.00032385,10]
[374645460,1753397440031,-931.57,0.00032385,10]
[374645462,1753397440041,-25627.8029054,0.00032385,2]
[374645464,1753397440050,-1065.06267612,0.00032385,2]
[374645466,1753397440061,-140952.91598,0.00032386,2]
[374645468,1753397440071,-9585.56408508,0.00032386,2]
[374645470,1753397440080,-274.96678475,0.00032386,2]
[374645472,1753397440089,-1638.03044848,0.00032386,2]
[374645474,1753397440099,-539.39879826,0.00032386,2]
[374645476,1753397440108,-12813.9014527,0.00032387,2]
[374645478,1753397440118,-11715.6894373,0.00032387,2]
[374645480,1753397440127,-934.92,0.00032387,10]
[374645482,1753397440137,-734.69,0.00032387,10]
[374645484,1753397440146,-400.0,0.00032387,10]
[374645486,1753397440156,-400.0,0.00032387,10]
[374645488,1753397440165,-400.0,0.00032387,10]
[374645490,1753397440174,-400.0,0.00032387,10]
[374645492,1753397440186,-400.0,0.00032387,10]
[374645494,1753397440195,-1216.83,0.00032387,10]
[374645496,1753397440204,-556.11,0.00032387,10]
[374645498,1753397440214,-400.0,0.00032387,10]
[374645500,1753397440223,-400.0,0.00032387,10]
[374645502,1753397440233,-549.84,0.00032387,10]
[374645504,1753397440242,-400.0,0.00032387,10]
[374645506,1753397440252,-400.0,0.00032387,10]
[374645508,1753397440261,-400.0,0.00032387,10]
[374645510,1753397440271,-1043.15,0.00032387,10]
[374645512,1753397440280,-400.0,0.00032387,10]
[374645514,1753397440291,-400.0,0.00032387,10]
[374645516,1753397440301,-400.0,0.00032387,10]
[374645518,1753397440312,-400.0,0.00032387,10]
[374645520,1753397440321,-1177.45,0.00032387,10]
[374645522,1753397440332,-773.75,0.00032387,10]
[374645524,1753397440341,-400.0,0.00032387,10]
[374645526,1753397440351,-400.0,0.00032387,10]
[374645528,1753397440361,-405.35,0.00032387,10]
[374645530,1753397440371,-400.0,0.00032387,10]
[374645532,1753397440380,-400.0,0.00032387,10]
[374645534,1753397440390,-400.0,0.00032387,10]
[374645536,1753397440400,-487.26575994,0.00032387,10]
[374645538,1753397440409,-513.11,0.00032387,10]
[374645540,1753397440419,-998.25,0.00032387,10]
[374645542,1753397440428,-400.0,0.00032387,10]
[374645544,1753397440437,-400.0,0.00032387,10]
[374645546,1753397440447,-809.42,0.00032387,10]
[374645548,1753397440457,-400.0,0.00032387,10]
[374645550,1753397440467,-400.0,0.00032387,10]
[374645552,1753397440478,-400.0,0.00032387,10]
[374645554,1753397440488,-694.59,0.00032387,10]
[374645556,1753397440498,-250.0,0.00032387,10]
[374645559,1753397440508,-1200.59,0.00032387,10]
[374645560,1753397440517,-400.0,0.00032387,10]
[374645563,1753397440527,-400.0,0.00032387,10]
[374645565,1753397440538,-400.0,0.00032387,10]
[374645567,1753397440547,-1453.08,0.00032387,10]
[374645569,1753397440558,-400.0,0.00032387,10]
[374645571,1753397440568,-577.06,0.00032387,10]
[374645572,1753397440577,-400.0,0.00032387,10]
[374645574,1753397440587,-400.0,0.00032387,10]
[374645576,1753397440597,-400.0,0.00032387,10]
[374645578,1753397440606,-1476.25,0.00032387,10]
[374645580,1753397440615,-400.0,0.00032387,10]
[374645581,1753397440625,-726.75,0.00032387,10]
[374645583,1753397440634,-400.0,0.00032387,10]
[374645585,1753397440644,-1748.35,0.00032387,10]
[374645587,1753397440654,-575.43,0.00032387,10]
[374645589,1753397440663,-1000.0,0.00032387,10]
[374645591,1753397440673,-400.0,0.00032387,10]
[374645593,1753397440682,-400.0,0.00032387,10]
[374645595,1753397440692,-400.0,0.00032387,10]
[374645597,1753397440702,-673.99,0.00032387,10]
[374645599,1753397440712,-400.0,0.00032387,10]
[374645601,1753397440721,-870.63,0.00032387,10]
[374645603,1753397440731,-531.86662542,0.00032387,10]
[374645605,1753397440741,-400.0,0.00032387,10]
[374645607,1753397440750,-899.71,0.00032387,10]
[374645609,1753397440759,-962.13,0.00032387,10]
[374645611,1753397440769,-552.12,0.00032387,10]
[374645613,1753397440779,-712.95,0.00032387,10]
[374645615,1753397440788,-400.0,0.00032387,10]
[374645617,1753397440798,-2543.67,0.00032387,10]
[374645619,1753397440808,-400.0,0.00032387,10]
[374645621,1753397440817,-400.0,0.00032387,10]
[374645623,1753397440827,-400.0,0.00032387,10]
[374645625,1753397440837,-400.0,0.00032387,10]
[374645627,1753397440847,-4491.32,0.00032387,10]
[374645629,1753397440856,-400.0,0.00032387,10]
[374645631,1753397440866,-400.0,0.00032387,10]
[374645633,1753397440878,-590.15,0.00032387,10]
[374645635,1753397440887,-400.0,0.00032387,10]
[374645637,1753397440897,-1756.53,0.00032387,10]
[374645639,1753397440907,-775.69,0.00032387,10]
[374645641,1753397440918,-400.0,0.00032387,10]
[374645643,1753397440927,-400.0,0.00032387,10]
[374645645,1753397440937,-400.0,0.00032387,10]
[374645647,1753397440947,-400.0,0.00032387,10]
[374645649,1753397440959,-400.0,0.00032387,10]
[374645651,1753397440969,-1761.99,0.00032387,10]
[374645653,1753397440979,-400.0,0.00032387,10]
[374645655,1753397440988,-400.0,0.00032387,10]
[374645657,1753397440998,-400.0,0.00032387,10]
[374645658,1753397441007,-400.0,0.00032387,10]
[374645660,1753397441017,-400.0,0.00032387,10]
[374645662,1753397441027,-435.62,0.00032387,10]
[374645664,1753397441037,-747.67,0.00032387,10]
[374645666,1753397441047,-575.61,0.00032387,10]
[374645668,1753397441057,-3630.97,0.00032387,10]
[374645670,1753397441067,-182.98843942,0.00032387,10]
[374645672,1753397441076,-400.0,0.00032387,10]
[374645674,1753397441086,-400.0,0.00032387,10]
[374645677,1753397441096,-400.0,0.00032387,10]
[374645679,1753397441106,-1545.0,0.00032387,10]
[374645681,1753397441116,-400.0,0.00032387,10]
[374645683,1753397441126,-460.0,0.00032387,10]
[374645685,1753397441136,-433.05,0.00032387,10]
[374645687,1753397441146,-2104.74,0.00032387,10]
[374645688,1753397441155,-400.0,0.00032387,10]
[374645690,1753397441165,-400.0,0.00032387,10]
[374645692,1753397441175,-3105.34,0.00032387,10]
[374645694,1753397441185,-400.0,0.00032387,10]
[374645696,1753397441195,-400.0,0.00032387,10]
[374645698,1753397441205,-400.0,0.00032387,10]
[374645700,1753397441214,-2948.57,0.00032387,10]
[374645702,1753397441224,-400.0,0.00032387,10]
[374645704,1753397441233,-400.0,0.00032387,10]
[374645706,1753397441243,-400.0,0.00032387,10]
[374645708,1753397441253,-1474.9,0.00032387,10]
[374645710,1753397441263,-400.0,0.00032387,10]
[374645712,1753397441272,-400.0,0.00032387,10]
[374645714,1753397441282,-400.0,0.00032387,10]
[374645716,1753397441291,-400.0,0.00032387,10]
[374645718,1753397441301,-509.03,0.00032387,10]
[374645720,1753397441312,-400.0,0.00032387,10]
[374645722,1753397441322,-400.0,0.00032387,10]
[374645723,1753397441332,-1084.9,0.00032387,10]
[374645725,1753397441341,-400.0,0.00032387,10]
[374645727,1753397441351,-400.0,0.00032387,10]
[374645729,1753397441361,-11851.08,0.00032387,10]
[374645731,1753397441370,-4182.45,0.00032387,10]
[374645763,1753397441815,-400.0,0.00032387,10]
[374645767,1753397441848,-400.0,0.00032387,10]
[374645769,1753397441858,-400.0,0.00032387,10]
[374645771,1753397441867,-400.0,0.00032387,10]
[374645773,1753397441878,-1648.98,0.00032387,10]
[374645775,1753397441890,-400.0,0.00032387,10]
[374645795,1753397442108,-400.0,0.00032387,10]
[374645797,1753397442118,-400.0,0.00032387,10]
[374645799,1753397442128,-400.0,0.00032387,10]
[374645801,1753397442138,-400.0,0.00032387,10]
[374645803,1753397442148,-400.0,0.00032387,10]
[374645805,1753397442157,-2339.51,0.00032387,10]
[374645807,1753397442167,-400.0,0.00032387,10]
[374645809,1753397442176,-400.0,0.00032387,10]
[374645811,1753397442186,-3486.94,0.00032387,10]
[374645813,1753397442195,-400.0,0.00032387,10]
[374645815,1753397442205,-400.0,0.00032387,10]
[374645818,1753397442214,-400.0,0.00032387,10]
[374645819,1753397442224,-400.0,0.00032387,10]
[374645822,1753397442234,-2620.7,0.00032387,10]
[374645824,1753397442243,-400.0,0.00032387,10]
[374645826,1753397442253,-1513.64,0.00032387,10]
[374645828,1753397442263,-494.09,0.00032387,10]
[374645830,1753397442272,-430.24,0.00032387,10]
[374645831,1753397442282,-400.0,0.00032387,10]
[374645834,1753397442291,-990.38,0.00032387,10]
[374645836,1753397442301,-607.65,0.00032387,10]
[374645838,1753397442313,-3390.1,0.00032387,10]
[374645840,1753397442323,-400.0,0.00032387,10]
[374645841,1753397442332,-452.16,0.00032387,10]
[374645843,1753397442342,-664.61,0.00032387,10]
[374645845,1753397442351,-774.31,0.00032387,10]
[374645847,1753397442361,-1400.6,0.00032387,10]
[374645849,1753397442371,-400.0,0.00032387,10]
[374645852,1753397442381,-7565.93,0.00032387,10]
[374645854,1753397442391,-400.0,0.00032387,10]
[374645855,1753397442401,-400.0,0.00032387,10]
[374645858,1753397442411,-400.0,0.00032387,10]
[374645860,1753397442420,-400.0,0.00032387,10]
[374645862,1753397442430,-4615.33,0.00032387,10]
[374645863,1753397442442,-400.0,0.00032387,10]
[374645866,1753397442452,-508.91,0.00032387,10]
[374645868,1753397442463,-407.05,0.00032387,10]
[374645871,1753397442472,-2429.69,0.00032387,10]
[374645873,1753397442482,-991.92,0.00032387,10]
[374645875,1753397442492,-400.0,0.00032387,10]
[374645877,1753397442502,-3285.32,0.00032387,10]
[374645879,1753397442512,-400.0,0.00032387,10]
[374645881,1753397442522,-400.0,0.00032387,10]
[374645883,1753397442531,-400.0,0.00032387,10]
[374645884,1753397442541,-10000.0,0.00032388,2]
[374645886,1753397442551,-400.0,0.00032394,10]
[374645888,1753397442562,-555.82,0.00032394,10]
[374645890,1753397442572,-1691.54,0.00032394,10]
[374645892,1753397442582,-630.12,0.00032394,10]
[374645895,1753397442591,-1148.86,0.00032394,10]
[374645897,1753397442600,-491.56,0.00032394,10]
[374645898,1753397442610,-400.0,0.00032394,10]
[374645900,1753397442620,-734.84286326,0.00032394,10]
[374645903,1753397442639,-594.42713674,0.00032394,10]
[374645905,1753397442650,-931.57,0.00032394,10]
[374645907,1753397442660,-560.22287905,0.00032395,10]
[374645910,1753397442672,-374.69712095,0.00032395,10]
[374645912,1753397442681,-290.10266243,0.00032395,10]
[374645914,1753397442696,-444.58733757,0.00032395,10]
[374645916,1753397442707,-400.0,0.00032395,10]
[374645918,1753397442716,-400.0,0.00032395,10]
[374645920,1753397442726,-400.0,0.00032395,10]
[374645922,1753397442735,-400.0,0.00032395,10]
[374645924,1753397442744,-400.0,0.00032395,10]
[374645926,1753397442753,-1216.83,0.00032395,10]
[374645928,1753397442763,-556.11,0.00032395,10]
[374645930,1753397442772,-400.0,0.00032395,10]
[374645932,1753397442782,-549.84,0.00032395,10]
[374645934,1753397442792,-400.0,0.00032395,10]
[374645936,1753397442801,-400.0,0.00032395,10]
[374645938,1753397442813,-400.0,0.00032395,10]
[374645940,1753397442823,-400.0,0.00032395,10]
[374645942,1753397442832,-1043.15,0.00032395,10]
[374645944,1753397442842,-400.0,0.00032395,10]
[374645946,1753397442852,-400.0,0.00032395,10]
[374645948,1753397442862,-400.0,0.00032395,10]
[374645950,1753397442872,-400.0,0.00032395,10]
[374645952,1753397442885,-1177.45,0.00032395,10]
[374645954,1753397442894,-461.27099686,0.00032395,10]
[374645960,1753397442957,-312.47900314,0.00032395,10]
[374645962,1753397442966,-400.0,0.00032395,10]
[374645964,1753397442976,-400.0,0.00032395,10]
[374645966,1753397442985,-405.35,0.00032395,10]
[374645968,1753397442994,-400.0,0.00032395,10]
[374645970,1753397443004,-400.0,0.00032395,10]
[374645972,1753397443013,-400.0,0.00032395,10]
[374645974,1753397443023,-513.11,0.00032395,10]
[374645976,1753397443032,-998.25,0.00032395,10]
[374645978,1753397443042,-400.0,0.00032395,10]
[374645980,1753397443051,-400.0,0.00032395,10]
[374645982,1753397443062,-809.42,0.00032395,10]
[374645984,1753397443071,-400.0,0.00032395,10]
[374645986,1753397443081,-400.0,0.00032395,10]
[374645988,1753397443091,-522.35884644,0.00032395,10]
[374645990,1753397443101,-694.59,0.00032395,10]
[374645992,1753397443110,-250.0,0.00032395,10]
[374645994,1753397443120,-1200.59,0.00032395,10]
[374645996,1753397443130,-400.0,0.00032395,10]
[374645998,1753397443141,-400.0,0.00032395,10]
[374646000,1753397443151,-400.0,0.00032395,10]
[374646002,1753397443160,-1453.08,0.00032395,10]
[374646004,1753397443170,-400.0,0.00032395,10]
[374646006,1753397443180,-577.06,0.00032395,10]
[374646008,1753397443189,-400.0,0.00032395,10]
[374646010,1753397443199,-400.0,0.00032395,10]
[374646012,1753397443208,-400.0,0.00032395,10]
[374646014,1753397443217,-1476.25,0.00032395,10]
[374646016,1753397443227,-400.0,0.00032395,10]
[374646018,1753397443236,-726.75,0.00032395,10]
[374646020,1753397443246,-400.0,0.00032395,10]
[374646022,1753397443256,-1748.35,0.00032395,10]
[374646024,1753397443266,-575.43,0.00032395,10]
[374646026,1753397443276,-1000.0,0.00032395,10]
[374646028,1753397443285,-400.0,0.00032395,10]
[374646030,1753397443295,-400.0,0.00032395,10]
[374646032,1753397443304,-400.0,0.00032395,10]
[374646034,1753397443315,-673.99,0.00032395,10]
[374646036,1753397443325,-400.0,0.00032395,10]
[374646038,1753397443335,-870.63,0.00032395,10]
[374646040,1753397443346,-400.0,0.00032395,10]
[374646042,1753397443355,-899.71,0.00032395,10]
[374646043,1753397443365,-962.13,0.00032395,10]
[374646046,1753397443375,-552.12,0.00032395,10]
[374646047,1753397443384,-712.95,0.00032395,10]
[374646049,1753397443394,-400.0,0.00032395,10]
[374646051,1753397443403,-2543.67,0.00032395,10]
[374646053,1753397443412,-400.0,0.00032395,10]
[374646055,1753397443421,-400.0,0.00032395,10]
[374646057,1753397443431,-400.0,0.00032395,10]
[374646059,1753397443440,-400.0,0.00032395,10]
[374646061,1753397443449,-4491.32,0.00032395,10]
[374646063,1753397443459,-538.8389437,0.00032395,10]
[374646065,1753397443468,-400.0,0.00032395,10]
[374646067,1753397443478,-590.15,0.00032395,10]
[374646069,1753397443487,-400.0,0.00032395,10]
[374646071,1753397443497,-1756.53,0.00032395,10]
[374646073,1753397443507,-775.69,0.00032395,10]
[374646075,1753397443516,-400.0,0.00032395,10]
[374646077,1753397443526,-400.0,0.00032395,10]
[374646079,1753397443535,-400.0,0.00032395,10]
[374646081,1753397443545,-400.0,0.00032395,10]
[374646083,1753397443555,-400.0,0.00032395,10]
[374646085,1753397443565,-1761.99,0.00032395,10]
[374646087,1753397443576,-400.0,0.00032395,10]
[374646089,1753397443585,-400.0,0.00032395,10]
[374646091,1753397443595,-400.0,0.00032395,10]
[374646093,1753397443604,-400.0,0.00032395,10]
[374646095,1753397443614,-400.0,0.00032395,10]
[374646097,1753397443623,-435.62,0.00032395,10]
[374646099,1753397443633,-747.67,0.00032395,10]
[374646101,1753397443642,-575.61,0.00032395,10]
[374646103,1753397443652,-3630.97,0.00032395,10]
[374646105,1753397443662,-400.0,0.00032395,10]
[374646107,1753397443671,-400.0,0.00032395,10]
[374646109,1753397443680,-1545.0,0.00032395,10]
[374646111,1753397443690,-400.0,0.00032395,10]
[374646113,1753397443701,-264.65533605,0.00032395,10]
[374646115,1753397443712,-433.05,0.00032395,10]
[374646116,1753397443722,-662.15521931,0.00032395,10]
[374646119,1753397443735,-1442.58478069,0.00032395,10]
[374646121,1753397443745,-400.0,0.00032395,10]
[374646124,1753397443755,-400.0,0.00032395,10]
[374646126,1753397443765,-3105.34,0.00032395,10]
[374646128,1753397443774,-400.0,0.00032395,10]
[374646130,1753397443784,-400.0,0.00032395,10]
[374646132,1753397443793,-400.0,0.00032395,10]
[374646134,1753397443802,-2948.57,0.00032395,10]
[374646136,1753397443813,-400.0,0.00032395,10]
[374646138,1753397443822,-400.0,0.00032395,10]
[374646140,1753397443832,-400.0,0.00032395,10]
[374646142,1753397443841,-1474.9,0.00032395,10]
[374646144,1753397443851,-400.0,0.00032395,10]
[374646146,1753397443860,-400.0,0.00032395,10]
[374646148,1753397443870,-400.0,0.00032395,10]
[374646150,1753397443884,-400.0,0.00032395,10]
[374646152,1753397443895,-509.03,0.00032395,10]
[374646154,1753397443904,-400.0,0.00032395,10]
[374646156,1753397443915,-236.42662328,0.00032395,10]
[374646158,1753397443924,-1084.9,0.00032395,10]
[374646160,1753397443933,-400.0,0.00032395,10]
[374646162,1753397443943,-400.0,0.00032395,10]
[374646164,1753397443952,-11851.08,0.00032395,10]
[374646166,1753397443962,-2946.78987257,0.00032395,10]
[374646374,1753397446119,-1235.66012743,0.00032395,10]
[374646376,1753397446129,-400.0,0.00032395,10]
[374646378,1753397446138,-400.0,0.00032395,10]
[374646380,1753397446148,-400.0,0.00032395,10]
[374646381,1753397446157,-400.0,0.00032395,10]
[374646383,1753397446168,-1648.98,0.00032395,10]
[374646384,1753397446177,-300.32675016,0.00032395,10]
[374646385,1753397446188,-99.67324984,0.00032395,10]
[374646386,1753397446197,-400.0,0.00032395,10]
[374646387,1753397446206,-400.0,0.00032395,10]
[374646388,1753397446216,-400.0,0.00032395,10]
[374646389,1753397446225,-400.0,0.00032395,10]
[374646390,1753397446234,-400.0,0.00032395,10]
[374646391,1753397446243,-1321.62783552,0.00032395,10]
[374646393,1753397446283,-1017.88216448,0.00032395,10]
[374646395,1753397446292,-400.0,0.00032395,10]
[374646397,1753397446302,-400.0,0.00032395,10]
[374646399,1753397446311,-1565.04919777,0.00032395,10]
[374646525,1753397447537,-1301.12,0.00032387,10]
[374646527,1753397447548,-1921.89080223,0.00032395,10]
[374646529,1753397447557,-400.0,0.00032395,10]
[374646531,1753397447567,-400.0,0.00032395,10]
[374646532,1753397447577,-525.69625189,0.00032395,10]
[374646535,1753397447586,-400.0,0.00032395,10]
[374646536,1753397447596,-1639.75196402,0.00032395,10]
[374646539,1753397447608,-980.94803598,0.00032395,10]
[374646541,1753397447618,-400.0,0.00032395,10]
[374646543,1753397447628,-1513.64,0.00032395,10]
[374646545,1753397447637,-494.09,0.00032395,10]
[374646547,1753397447647,-430.24,0.00032395,10]
[374646549,1753397447656,-400.0,0.00032395,10]
[374646551,1753397447668,-990.38,0.00032395,10]
[374646553,1753397447678,-400.0,0.00032395,10]
[374646555,1753397447687,-607.65,0.00032395,10]
[374646557,1753397447696,-3390.1,0.00032395,10]
[374646559,1753397447705,-400.0,0.00032395,10]
[374646561,1753397447714,-452.16,0.00032395,10]
[374646563,1753397447724,-664.61,0.00032395,10]
[374646565,1753397447733,-1691.54,0.00032395,10]
[374646567,1753397447742,-555.82,0.00032395,10]
[374646569,1753397447752,-774.31,0.00032395,10]
[374646571,1753397447761,-1400.6,0.00032395,10]
[374646573,1753397447771,-184.23819539,0.00032395,2]
[374646575,1753397447780,-400.0,0.00032395,10]
[374646577,1753397447789,-7565.93,0.00032395,10]
[374646579,1753397447799,-400.0,0.00032395,10]
[374646581,1753397447808,-400.0,0.00032395,10]
[374646582,1753397447817,-400.0,0.00032395,10]
[374646585,1753397447827,-400.0,0.00032395,10]
[374646587,1753397447836,-630.12,0.00032395,10]
[374646589,1753397447846,-4615.33,0.00032395,10]
[374646591,1753397447855,-508.91,0.00032395,10]
[374646593,1753397447865,-400.0,0.00032395,10]
[374646594,1753397447875,-407.05,0.00032395,10]